bitfinex/quotes_ETHUSD_20250730
["timestamp","ask_amount","ask_price","bid_price","bid_amount"]
[1753884035339,45.44386396,3772.4,3772.3,1e-08]
[1753884037208,44.98066396,3772.4,3772.3,1e-08]
[1753884037513,45.44386396,3772.4,3772.3,1e-08]
[1753884038041,44.50596396,3772.4,3772.3,1e-08]
[1753884038214,44.25928713,3772.4,3772.3,1e-08]
[1753884038416,44.50499651,3772.4,3772.3,1e-08]
[1753884038620,44.64369281,3772.4,3772.3,1e-08]
[1753884038927,40.37669281,3772.4,3772.3,1e-08]
[1753884039128,36.82669281,3772.4,3772.3,1e-08]
[1753884039339,36.82669281,3772.4,3772.3,0.96360001]
[1753884039340,35.86149651,3772.4,3772.3,0.96360001]
[1753884039547,40.67749651,3772.4,3772.3,0.96360001]
[1753884039748,13.67749651,3772.4,3772.3,0.96360001]
[1753884039910,43.67749651,3772.4,3772.3,0.96360001]
[1753884040110,43.67749651,3772.4,3772.3,0.49340001]
[1753884040310,44.43189651,3772.4,3772.3,1e-08]
[1753884040615,44.90659651,3772.4,3772.3,1e-08]
[1753884040820,40.16589651,3772.4,3772.3,1e-08]
[1753884041128,40.16589651,3772.4,3772.3,0.96360001]
[1753884041129,13.03709697,3772.4,3772.3,0.96360001]
[1753884041330,13.43032681,3772.4,3772.3,0.96360001]
[1753884042121,13.18455816,3772.4,3772.3,0.96360001]
[1753884042454,3.39331422,3772.4,3772.3,0.96360001]
[1753884042668,0.1328,3772.4,3772.3,0.96360001]
[1753884042900,0.1328,3772.4,3772.3,1.77560001]
[1753884043339,0.1328,3772.7,3772.4,0.812]
[1753884043544,4.266,3772.6,3772.5,0.9636]
[1753884043730,4.266,3772.6,3772.5,1.7756]
[1753884043731,7.266,3772.6,3772.5,1.7756]
[1753884044561,4.266,3772.6,3772.5,1.7756]
[1753884044968,7.266,3772.6,3772.5,1.7756]
[1753884045328,7.265,3772.6,3772.5,1.7756]
[1753884047350,4.265,3772.6,3772.5,1.7756]
[1753884052944,4.70478,3772.6,3772.3,1e-08]
[1753884055049,7.39754343,3772.4,3772.3,1e-08]
[1753884055575,4.74671107,3772.4,3772.3,1e-08]
[1753884055753,3.1328,3772.4,3772.3,0.47230001]
[1753884056257,3.1328,3772.4,3772.3,1e-08]
[1753884056971,5.097,3772.4,3772.3,1e-08]
[1753884057373,7.89578151,3772.4,3772.3,1e-08]
[1753884057945,9.09098151,3772.4,3772.3,1e-08]
[1753884058145,11.22891461,3772.4,3772.3,1e-08]
[1753884058667,14.02391461,3772.4,3772.3,1e-08]
[1753884059351,14.29932329,3772.4,3772.3,1e-08]
[1753884059673,18.56032329,3772.4,3772.3,1e-08]
[1753884059874,20.15432329,3772.4,3772.3,1e-08]
[1753884060075,3.55,3772.3,3771.9,0.001]
[1753884060284,34.5924,3772.0,3771.9,0.001]
[1753884060588,45.86633393,3772.0,3771.9,0.001]
[1753884060787,6.20167585,3771.2,3770.5,1.202]
[1753884061004,10.46267585,3771.2,3770.5,1.202]
[1753884061346,10.59547585,3771.2,3771.1,1.242]
[1753884061469,11.03525585,3771.2,3771.1,0.04]
[1753884062617,18.03525585,3771.2,3771.1,0.04]
[1753884063213,11.03525585,3771.2,3771.1,0.04]
[1753884063870,7.3938,3771.2,3771.1,1.7143]
[1753884064072,0.1328,3771.2,3771.1,1.7143]
[1753884064715,0.002,3772.6,3771.5,2.65142216]
[1753884064925,0.1328,3771.9,3771.7,0.923]
[1753884065131,0.24622775,3772.4,3771.9,0.923]
[1753884065299,0.39397684,3772.3,3772.1,2.65103229]
[1753884065621,0.1328,3772.5,3772.2,2.5844]
[1753884065820,0.1328,3772.5,3772.2,0.9101]
[1753884066023,0.1328,3772.5,3772.3,1.6743]
[1753884066175,0.002,3772.6,3772.3,0.4723]
[1753884066380,0.1328,3772.4,3772.3,1.202]
[1753884066896,0.1328,3772.4,3772.3,1.6743]
[1753884067097,0.1328,3772.4,3772.3,1.202]
[1753884067291,3.57228,3772.4,3772.3,1.202]
[1753884068371,7.69661236,3772.4,3772.3,1.202]
[1753884068667,38.27649605,3772.4,3772.3,1.202]
[1753884068810,37.69661236,3772.4,3772.3,1.202]
[1753884069012,7.69661236,3772.4,3772.3,1.202]
[1753884069258,11.95561236,3772.4,3772.3,1.202]
[1753884069771,11.95561236,3772.4,3771.5,0.4723]
[1753884069772,0.55,3772.3,3771.5,0.4723]
[1753884069969,1.81555099,3772.3,3771.7,1.202]
[1753884070354,0.1328,3771.8,3771.7,1.202]
[1753884070513,7.3918,3771.8,3771.7,1.202]
[1753884071227,7.3918,3771.8,3771.1,0.9516]
[1753884071228,3.0,3771.7,3771.1,0.9516]
[1753884071452,4.259,3771.8,3771.3,1.202]
[1753884071627,0.1328,3771.4,3771.3,1.202]
[1753884071831,3.0,3771.3,3771.1,0.9516]
[1753884072052,4.258,3771.4,3771.2,0.4723]
[1753884072354,3.1328,3771.3,3771.1,0.9516]
[1753884072648,3.1328,3771.3,3771.2,1.202]
[1753884073059,3.1328,3771.3,3771.2,1.6743]
[1753884073546,4.3908,3771.3,3771.2,1.6743]
[1753884074046,4.3908,3771.3,3771.1,0.04]
[1753884074250,5.26188,3771.3,3771.1,0.04]
[1753884074957,7.27887585,3771.2,3771.1,0.04]
[1753884075350,3.0,3771.2,3771.1,0.04]
[1753884076020,7.257,3771.2,3771.1,1.242]
[1753884076644,7.257,3771.2,3771.1,1.6719]
[1753884077124,7.257,3771.2,3771.1,1.243]
[1753884077422,3.0,3771.2,3771.1,1.243]
[1753884077622,0.1328,3771.3,3771.2,0.949]
[1753884077825,4.257,3771.3,3771.2,1.63999]
[1753884078024,7.257,3771.3,3771.2,2.81279]
[1753884078226,7.257,3771.3,3771.2,2.5507]
[1753884078563,7.3898,3771.3,3771.2,2.5507]
[1753884079167,3.1328,3771.3,3771.2,2.5507]
[1753884079366,4.3898,3771.3,3771.2,2.5507]
[1753884082787,4.256,3771.5,3771.2,2.5507]
[1753884083093,4.256,3771.5,3771.3,2.12603925]
[1753884083094,4.3888,3771.5,3771.3,2.12603925]
[1753884083250,4.3888,3771.5,3771.3,0.4289]
[1753884083446,4.3888,3771.5,3771.4,1.1728]
[1753884083844,4.3888,3771.5,3771.2,0.949]
[1753884084072,4.3888,3771.5,3771.3,1.1728]
[1753884084246,0.002,3771.7,3771.4,1.6017]
[1753884084574,0.002,3771.7,3771.6,2.65139463]
[1753884084886,0.002,3771.7,3771.6,3.68429463]
[1753884085187,0.002,3771.7,3771.6,5.28599463]
[1753884085549,0.002,3771.7,3771.6,2.6346]
[1753884086005,0.002,3771.7,3771.6,2.0729]
[1753884086480,0.002,3771.7,3771.6,2.5018]
[1753884086679,0.002,3771.7,3771.6,5.6818076]
[1753884086862,0.002,3771.7,3771.6,5.8146076]
[1753884088077,0.002,3771.7,3771.6,3.16321297]
[1753884088285,0.002,3771.7,3771.6,5.8146076]
[1753884088771,0.002,3771.7,3771.6,2.6346]
[1753884088975,0.002,3771.7,3771.6,2.0729]
[1753884089180,0.002,3771.7,3771.6,5.15319463]
[1753884089391,0.002,3771.7,3771.6,2.5018]
[1753884091069,0.002,3771.7,3771.6,5.15319463]
[1753884091391,0.002,3771.7,3771.6,2.5018]
[1753884095364,0.002,3771.7,3771.6,0.9001]
[1753884095585,0.002,3771.7,3771.6,2.0729]
[1753884095786,0.002,3771.7,3771.6,2.5018]
[1753884096386,0.002,3771.7,3771.6,5.15319463]
[1753884096581,0.002,3771.7,3771.6,2.5018]
[1753884097102,0.002,3771.7,3771.6,0.9001]
[1753884097606,0.002,3771.7,3771.4,2.65152694]
[1753884097902,0.002,3771.7,3771.4,3.82432694]
[1753884098110,0.002,3771.7,3771.4,1.1728]
[1753884098290,0.002,3771.7,3771.4,3.82431885]
[1753884098492,0.002,3771.7,3771.5,4.25310538]
[1753884098800,0.002,3771.7,3771.6,3.59860857]
[1753884099105,0.002,3771.7,3771.6,5.30659463]
[1753884099605,0.002,3771.7,3771.6,5.85659463]
[1753884099801,0.002,3772.1,3772.0,4.19471346]
[1753884100006,0.002,3772.1,3772.0,15.05252437]
[1753884100175,0.002,3772.1,3772.0,16.78702437]
[1753884102019,0.002,3772.1,3772.0,11.1289369]
[1753884102220,0.002,3772.1,3772.0,6.3289369]
[1753884103911,0.002,3772.1,3772.0,12.53702437]
[1753884108292,1e-08,3772.1,3772.0,15.53702437]
[1753884108839,1e-08,3772.6,3772.5,4.13456209]
[1753884109044,1e-08,3772.6,3772.5,14.74469785]
[1753884109196,1e-08,3772.6,3772.5,19.42419023]
[1753884109398,1e-08,3772.6,3772.5,19.55699023]
[1753884109615,1e-08,3772.6,3772.5,9.65190276]
[1753884109817,1e-08,3772.6,3772.5,13.89790276]
[1753884110312,1e-08,3772.6,3772.5,8.64190276]
[1753884110512,1e-08,3772.6,3772.5,3.71736209]
[1753884110721,1e-08,3772.6,3772.5,4.3788]
[1753884110945,1e-08,3772.6,3772.5,0.1328]
[1753884111124,1.66830001,3772.6,3772.2,4.245]
[1753884111450,0.4537,3772.5,3772.2,4.245]
[1753884111644,0.13280001,3772.6,3772.2,4.245]
[1753884111942,0.13280001,3772.6,3772.4,2.65077525]
[1753884111943,1e-08,3772.6,3772.4,2.65077525]
[1753884112099,1e-08,3772.6,3772.5,2.78356209]
[1753884112851,1e-08,3772.6,3772.5,0.1328]
[1753884113258,1e-08,3772.6,3772.5,2.78356209]
[1753884114130,1e-08,3772.6,3772.5,4.02006209]
[1753884114456,1e-08,3772.6,3772.5,6.59551867]
[1753884116135,1e-08,3772.6,3772.5,7.14551867]
[1753884117805,1e-08,3772.6,3772.5,9.00071867]
[1753884118029,1e-08,3772.6,3772.5,7.81726209]
[1753884118319,1e-08,3772.6,3772.5,9.05376209]
[1753884118482,1e-08,3772.6,3772.5,5.1665]
[1753884118692,1e-08,3772.6,3772.2,0.91862339]
[1753884119030,0.4537,3772.5,3772.3,4.243]
[1753884119501,1.18200001,3772.6,3772.5,2.65076209]
[1753884119502,1e-08,3772.6,3772.5,2.65076209]
[1753884119668,1e-08,3772.6,3772.3,6.89388269]
[1753884119999,1e-08,3772.6,3772.3,4.243]
[1753884120210,1e-08,3772.6,3772.4,2.65077169]
[1753884120367,1e-08,3772.6,3772.3,4.243]
[1753884120368,1.6357,3772.5,3772.3,4.243]
[1753884120572,1.6357,3772.4,3772.3,4.243]
[1753884121407,1.6357,3772.4,3772.1,4.242]
[1753884121615,1.6357,3772.3,3771.6,0.001]
[1753884121980,1.6357,3772.2,3771.6,0.001]
[1753884122180,2.65088616,3772.4,3771.6,0.001]
[1753884122396,0.9373,3772.0,3771.6,0.001]
[1753884122600,0.2573,3771.9,3771.6,0.001]
[1753884122818,0.711,3771.9,3771.6,0.001]
[1753884123011,1.182,3771.8,3771.6,0.001]
[1753884123213,1.6357,3771.8,3771.6,0.001]
[1753884123514,0.4537,3771.8,3771.6,0.001]
[1753884123722,3.9373,3772.0,3771.6,0.001]
[1753884123723,0.9373,3772.0,3771.6,0.001]
[1753884124138,1.391,3772.0,3771.6,0.001]
[1753884124306,0.4537,3772.3,3771.6,0.001]
[1753884124497,1.3554,3772.3,3771.6,0.001]
[1753884125586,1.182,3772.2,3771.6,0.001]
[1753884126318,1.43574,3772.2,3771.6,0.001]
[1753884126522,0.4537,3772.1,3771.6,0.001]
[1753884126725,1e-08,3772.6,3771.9,5.65808747]
[1753884127033,1e-08,3772.6,3772.3,2.65088893]
[1753884127220,1e-08,3772.6,3772.4,0.02650832]
[1753884127389,1e-08,3772.6,3772.3,2.65088893]
[1753884127791,1e-08,3772.6,3772.4,1.2365]
[1753884128015,1e-08,3772.6,3772.5,2.78356209]
[1753884128217,1e-08,3772.6,3772.5,4.02006209]
[1753884129341,1e-08,3772.6,3772.5,1.3693]
[1753884129643,1e-08,3772.6,3772.5,2.78356209]
[1753884129934,1e-08,3772.6,3772.5,5.19848449]
[1753884130105,1e-08,3772.6,3772.5,9.43848449]
[1753884130323,1e-08,3772.6,3772.5,0.8417224]
[1753884130511,1.63570001,3772.6,3772.5,0.1328]
[1753884130829,1.63570001,3772.6,3772.2,0.106231]
[1753884130830,1e-08,3772.6,3772.2,0.1328]
[1753884131043,1e-08,3772.6,3772.3,3.88737411]
[1753884131336,1e-08,3772.6,3772.5,3.59946209]
[1753884131540,1e-08,3772.6,3772.5,4.78797368]
[1753884131698,1e-08,3772.6,3772.5,6.49397368]
[1753884131895,1e-08,3772.6,3772.5,7.29058868]
[1753884132240,1e-08,3772.6,3772.5,6.82108868]
[1753884133135,1e-08,3772.6,3772.5,4.78797368]
[1753884133297,1e-08,3772.6,3772.5,0.9487]
[1753884133496,1e-08,3772.6,3772.5,6.88976209]
[1753884133924,1e-08,3772.6,3772.5,4.239]
[1753884134104,1e-08,3772.6,3772.5,6.88976209]
[1753884134321,1e-08,3772.6,3772.5,4.239]
[1753884134707,1e-08,3772.6,3772.5,6.88976209]
[1753884135240,1e-08,3772.6,3772.5,10.482041]
[1753884135455,1e-08,3772.6,3772.5,10.012541]
[1753884136238,1e-08,3772.6,3772.5,4.238]
[1753884137327,1e-08,3772.6,3772.5,6.88876209]
[1753884137501,1e-08,3772.6,3772.5,5.23096209]
[1753884138136,1e-08,3772.6,3772.5,11.43904956]
[1753884138636,1e-08,3772.6,3772.5,15.12604956]
[1753884138817,1e-08,3772.6,3772.5,16.91702075]
[1753884139013,1e-08,3772.6,3772.5,17.46702075]
[1753884140441,1e-08,3772.6,3772.5,10.81603328]
[1753884140642,1e-08,3772.6,3772.5,11.25793328]
[1753884140804,1e-08,3772.6,3772.5,17.46602075]
[1753884142742,1e-08,3772.6,3772.5,11.36413528]
[1753884143130,1e-08,3772.6,3772.5,10.18743528]
[1753884143348,1e-08,3772.6,3772.5,9.74553528]
[1753884143644,1e-08,3772.6,3772.5,8.78293528]
[1753884144008,1e-08,3772.6,3772.5,10.40053528]
[1753884144239,1e-08,3772.6,3772.5,16.05862275]
[1753884146715,1e-08,3772.6,3772.5,4.54793528]
[1753884147062,1e-08,3772.6,3772.5,6.88476209]
[1753884149414,1e-08,3772.6,3772.5,8.06046209]
[1753884150152,1e-08,3772.6,3772.5,9.05236209]
[1753884150369,1e-08,3772.6,3772.5,3.82646209]
[1753884150513,1e-08,3772.6,3772.5,6.88376209]
[1753884150855,1e-08,3772.6,3772.5,8.02145209]
[1753884151236,1e-08,3772.6,3772.5,9.63905209]
[1753884151442,1e-08,3772.6,3772.5,9.19715209]
[1753884152064,1e-08,3772.6,3772.5,8.02145209]
[1753884152986,1e-08,3772.6,3772.5,10.43566909]
[1753884153932,1e-08,3772.6,3772.5,9.99376909]
[1753884154548,1e-08,3772.6,3772.5,10.43566909]
[1753884154879,1e-08,3772.6,3772.5,5.76076909]
[1753884155027,1e-08,3772.6,3772.5,4.58506909]
[1753884155427,1e-08,3772.6,3772.5,8.02045209]
[1753884155589,1e-08,3772.6,3772.5,9.19615209]
[1753884156078,1e-08,3772.6,3772.4,0.1328]
[1753884156079,0.46610001,3772.6,3772.4,0.1328]
[1753884156289,1.60360001,3772.6,3772.1,0.1328]
[1753884156575,1.60360001,3772.6,3772.0,4.231]
[1753884156576,0.1328,3772.4,3772.0,4.231]
[1753884156774,0.9652,3772.5,3771.9,4.231]
[1753884156993,1.6036,3772.3,3771.9,4.3638]
[1753884157275,1.6036,3772.2,3771.7,4.231]
[1753884157479,0.9652,3772.5,3771.9,2.6511643]
[1753884157660,1.098,3772.5,3771.9,0.1328]
[1753884157840,1.098,3772.5,3771.9,7.01497144]
[1753884158258,1e-08,3772.6,3772.2,2.65091779]
[1753884158582,1e-08,3772.6,3772.4,2.65083236]
[1753884158789,1e-08,3772.6,3772.5,0.1328]
[1753884159676,1.60360001,3772.6,3772.4,4.231]
[1753884159995,1.6036,3772.5,3772.1,4.23]
[1753884160287,1.6036,3772.4,3771.9,0.1328]
[1753884160691,0.9166,3772.2,3771.8,4.23]
[1753884160990,0.4661,3772.1,3771.8,7.01405166]
[1753884161191,0.4661,3772.1,3771.8,4.3628]
[1753884161708,0.1328,3772.5,3772.0,2.6511005]
[1753884161872,0.9131,3772.5,3771.9,3.82686381]
[1753884162078,0.9131,3772.5,3772.0,0.1328]
[1753884162440,1.3792,3772.5,3772.0,0.1328]
[1753884163795,1.6036,3772.4,3771.8,4.23]
[1753884163949,1.7364,3772.4,3771.9,0.1328]
[1753884164145,1.2703,3772.4,3771.9,0.1328]
[1753884164385,1.6036,3772.3,3771.9,0.1328]
[1753884164975,1.6036,3772.3,3772.1,0.001]
[1753884165184,0.4661,3772.3,3772.1,0.001]
[1753884165399,0.1328,3772.4,3772.1,0.001]
[1753884165544,0.9131,3772.5,3772.2,0.1328]
[1753884166575,1.7364,3772.4,3772.1,0.001]
[1753884167479,0.5989,3772.4,3772.1,0.001]
[1753884167652,0.9131,3772.5,3772.1,0.001]
[1753884167857,1e-08,3772.6,3772.3,2.65089612]
[1753884168183,1e-08,3772.6,3772.5,2.65076209]
[1753884168482,1e-08,3772.6,3772.5,3.77992269]
[1753884168862,1e-08,3772.6,3772.5,5.40812269]
[1753884169256,1e-08,3772.6,3772.5,4.96232269]
[1753884170977,1e-08,3772.6,3772.5,11.99751016]
[1753884173286,1e-08,3772.6,3772.5,16.22451016]
[1753884174278,1e-08,3772.6,3772.5,16.35731016]
[1753884176603,1e-08,3772.6,3772.5,16.90731016]
[1753884178080,1e-08,3772.6,3772.5,19.90731016]
[1753884178400,1e-08,3773.0,3772.9,7.19178106]
[1753884178588,1e-08,3773.0,3772.9,12.70101553]
[1753884178774,1e-08,3773.0,3772.9,14.46201553]
[1753884181811,1e-08,3773.0,3772.9,9.79121553]
[1753884182015,1e-08,3773.0,3772.9,19.122303]
[1753884182372,1e-08,3773.0,3772.9,19.568103]
[1753884182574,1e-08,3773.0,3772.9,20.118103]
[1753884183175,0.002,3774.2,3774.1,2.64963832]
[1753884183376,0.002,3774.2,3774.1,13.83518962]
[1753884183691,0.002,3774.2,3774.1,15.01758962]
[1753884183897,0.002,3774.2,3774.1,13.83518962]
[1753884184218,0.002,3774.2,3774.1,16.83518962]
[1753884184406,0.002,3774.2,3774.1,18.01758962]
[1753884185101,0.002,3774.2,3774.1,3.04740215]
[1753884185399,0.002,3774.2,3774.1,14.136386]
[1753884185720,0.002,3774.2,3774.1,14.10988962]
[1753884186007,0.002,3774.2,3774.1,14.94708962]
[1753884186432,1e-08,3774.2,3774.1,17.65988962]
[1753884186718,1e-08,3774.2,3774.1,19.07818962]
[1753884189237,1e-08,3774.2,3774.1,4.01990215]
[1753884189412,1e-08,3774.2,3774.1,8.23990215]
[1753884189595,1e-08,3774.2,3774.1,9.42230215]
[1753884190000,1e-08,3774.2,3774.1,7.26740215]
[1753884190202,1e-08,3774.2,3774.1,3.04740215]
[1753884190405,0.43440001,3774.2,3774.1,0.1328]
[1753884190624,1.52680001,3774.2,3774.1,2.78243832]
[1753884190787,1.52680001,3774.2,3774.1,0.1328]
[1753884191325,1.52680001,3774.2,3774.1,2.78243832]
[1753884191513,1.52680001,3774.2,3774.1,0.1328]
[1753884191713,1.52680001,3774.2,3774.1,2.78243832]
[1753884192009,0.43440001,3774.2,3774.1,0.1328]
[1753884192219,1.52680001,3774.2,3774.1,0.1328]
[1753884192437,1.52680001,3774.2,3774.1,2.78243832]
[1753884192641,1.52680001,3774.2,3774.1,0.1328]
[1753884192807,1.52680001,3774.2,3774.1,2.78243832]
[1753884192994,1.52680001,3774.2,3774.1,0.1328]
[1753884193323,1e-08,3774.2,3774.1,2.78243832]
[1753884193525,1.52680001,3774.2,3774.1,4.3508]
[1753884193952,1.52680001,3774.2,3773.8,2.64984698]
[1753884194102,1e-08,3774.2,3773.9,4.218]
[1753884194289,1.5268,3774.1,3773.9,4.218]
[1753884194494,1.5268,3774.0,3773.8,4.3508]
[1753884194794,1.5268,3773.9,3773.8,4.3508]
[1753884194988,1.5268,3773.9,3773.8,7.00064895]
[1753884195689,0.4344,3773.9,3773.8,7.00064895]
[1753884196229,1.52680001,3774.2,3773.8,7.00064895]
[1753884196533,1.5268,3774.1,3774.0,2.64970853]
[1753884196706,1e-08,3774.2,3774.1,2.64963832]
[1753884198289,1e-08,3774.2,3774.0,7.00049205]
[1753884198608,0.44810001,3774.2,3774.0,4.3508]
[1753884199233,1e-08,3774.2,3774.0,4.3508]
[1753884199442,2.5306,3774.1,3772.7,1.9795]
[1753884199625,1e-08,3774.2,3772.3,1.246825]
[1753884199626,0.9901,3773.7,3773.2,0.1328]
[1753884199811,0.9901,3773.5,3772.9,0.1328]
[1753884200012,0.9391,3773.3,3772.2,2.65096762]
[1753884200225,1.5405,3773.2,3772.9,0.01276106]
[1753884200581,1.0719,3773.0,3772.6,2.65066562]
[1753884200698,1.0719,3773.0,3772.8,2.65055131]
[1753884200906,0.9391,3773.0,3772.9,0.01276106]
[1753884201246,0.9391,3773.0,3772.9,0.01276072]
[1753884202611,0.1328,3773.3,3772.9,0.01276072]
[1753884202822,0.9236,3773.6,3773.2,2.65027032]
[1753884203037,0.9236,3773.6,3773.1,2.78308979]
[1753884203357,0.9236,3773.6,3773.3,2.6501881]
[1753884203500,0.9236,3773.6,3773.4,2.65008162]
[1753884203813,1.0683,3774.1,3773.5,2.65005962]
[1753884205202,1e-08,3774.2,3774.1,2.8089347]
[1753884205903,1e-08,3774.2,3774.1,8.1076347]
[1753884206102,1e-08,3774.2,3774.1,8.53153832]
[1753884206299,1e-08,3774.2,3774.1,10.31057877]
[1753884208058,1e-08,3774.2,3774.1,13.31057877]
[1753884209053,1e-08,3774.2,3774.1,7.56147877]
[1753884209240,1e-08,3774.2,3774.1,11.77447877]
[1753884209565,1e-08,3774.2,3774.1,7.3458]
[1753884209853,0.94390001,3774.2,3774.1,7.3458]
[1753884210019,1.39200001,3774.2,3774.1,7.3458]
[1753884210763,1.39200001,3774.2,3774.1,4.3458]
[1753884211056,1.39200001,3774.2,3774.0,4.214]
[1753884211057,2.45170001,3774.2,3774.0,4.214]
[1753884211358,0.94390001,3774.2,3774.1,2.64963832]
[1753884211677,0.94390001,3774.2,3774.0,4.214]
[1753884212004,1.5078,3774.1,3774.0,4.214]
[1753884212321,0.4481,3774.1,3774.0,4.214]
[1753884212524,0.94390001,3774.2,3774.0,4.214]
[1753884212906,1.39200001,3774.2,3774.0,4.214]
[1753884214250,1.39200001,3774.2,3774.0,6.86369931]
[1753884214445,1.39200001,3774.2,3774.0,4.214]
[1753884214633,0.94390001,3774.2,3774.0,4.214]
[1753884215145,1e-08,3774.2,3774.1,2.64963832]
[1753884215537,1e-08,3774.2,3774.1,5.14835856]
[1753884215712,1e-08,3774.2,3774.1,5.85765494]
[1753884216049,1e-08,3774.2,3774.1,6.79105856]
[1753884216615,1e-08,3774.2,3774.1,9.79105856]
[1753884220039,1e-08,3774.2,3774.1,14.00105856]
[1753884220650,1e-08,3774.2,3774.1,9.79105856]
[1753884220947,1e-08,3774.2,3774.1,11.00105856]
[1753884221446,1e-08,3774.2,3774.1,6.24105856]
[1753884221745,1e-08,3774.2,3774.1,6.99143832]
[1753884221968,1e-08,3774.2,3774.1,2.78243832]
[1753884222162,1e-08,3774.2,3774.1,6.99143832]
[1753884223314,1e-08,3774.2,3774.1,0.1328]
[1753884223516,2.46180001,3774.2,3774.1,4.3408]
[1753884223727,2.46180001,3774.2,3774.1,6.99043832]
[1753884224026,2.46180001,3774.2,3774.1,4.3408]
[1753884224433,2.70798001,3774.2,3774.0,0.001]
[1753884224714,1.5078,3774.1,3774.0,0.001]
[1753884229758,1.33298001,3774.2,3774.0,0.001]
[1753884229759,1.08680001,3774.2,3774.0,0.001]
[1753884230065,0.95400001,3774.2,3774.0,0.001]
[1753884230929,0.95400001,3774.2,3774.0,2.65070688]
[1753884231259,0.95400001,3774.2,3774.0,0.001]
[1753884231614,1.5207,3774.1,3774.0,0.001]
[1753884231827,1.90097,3774.1,3774.0,0.001]
[1753884235258,0.38027,3774.1,3774.0,0.001]
[1753884235456,0.1328,3774.1,3774.0,0.001]
[1753884235962,0.95400001,3774.2,3774.0,0.001]
[1753884237444,1.54780001,3774.2,3774.0,0.001]
[1753884238550,0.461,3774.1,3774.0,0.001]
[1753884239360,1.4801,3774.1,3774.0,0.001]
[1753884239671,8.84241181,3774.1,3774.0,0.001]
[1753884239834,6.19277349,3774.1,3774.0,0.001]
[1753884240636,4.71267349,3774.1,3774.0,0.001]
[1753884240841,0.9083,3774.1,3774.0,0.001]
[1753884241562,0.9083,3774.1,3774.0,1.1145]
[1753884241733,0.9083,3774.1,3774.0,0.001]
[1753884242152,2.3884,3774.1,3774.0,0.001]
[1753884242573,5.3884,3774.1,3774.0,0.001]
[1753884242750,6.18807175,3774.1,3774.0,0.001]
[1753884243152,5.94052,3774.1,3774.0,0.001]
[1753884243480,4.70792791,3774.1,3774.0,0.001]
[1753884243787,4.46042,3774.1,3774.0,0.001]
[1753884243945,0.9083,3774.1,3774.0,0.001]
[1753884244640,0.13280001,3774.2,3774.0,0.001]
[1753884244641,0.13280001,3774.2,3774.0,1.557]
[1753884244841,1e-08,3774.2,3774.1,4.20563832]
[1753884245098,1e-08,3774.2,3774.1,4.3649347]
[1753884245247,1e-08,3774.2,3774.1,3.2514347]
[1753884245443,1e-08,3774.2,3774.1,5.04554022]
[1753884245647,1e-08,3774.2,3774.1,5.01904384]
[1753884246473,1e-08,3774.2,3774.1,5.04554022]
[1753884246686,1e-08,3774.2,3774.1,5.01904384]
[1753884248050,1e-08,3774.2,3774.1,5.59554022]
[1753884248248,1e-08,3774.2,3774.1,10.75294384]
[1753884260209,1e-08,3774.2,3774.1,10.20294384]
[1753884260409,1e-08,3774.2,3774.1,9.76044384]
[1753884260606,1e-08,3774.2,3774.1,3.76533832]
[1753884260814,1e-08,3774.2,3774.1,6.97943832]
[1753884261531,1e-08,3774.2,3774.1,8.44193832]
[1753884261722,1e-08,3774.2,3774.1,9.35763832]
[1753884262905,1e-08,3774.2,3774.1,8.92923832]
[1753884263105,1e-08,3774.2,3774.1,6.97743832]
[1753884263706,1e-08,3774.2,3774.1,8.01153832]
[1753884264032,1e-08,3774.2,3774.1,9.11537189]
[1753884264231,1e-08,3774.2,3774.1,10.58007189]
[1753884264852,1e-08,3774.2,3774.1,13.58007189]
[1753884268225,1e-08,3774.2,3774.1,13.57907189]
[1753884268439,1e-08,3774.2,3774.1,4.37257189]
[1753884268627,1e-08,3774.2,3774.1,8.67172889]
[1753884268833,1e-08,3774.2,3774.1,7.75702889]
[1753884269150,0.42980001,3774.2,3774.1,2.78243832]
[1753884269330,1.41050001,3774.2,3774.1,6.97543832]
[1753884269954,1.41050001,3774.2,3774.1,4.3258]
[1753884270260,1.41050001,3774.2,3774.0,0.001]
[1753884270261,2.37550001,3774.2,3774.0,0.001]
[1753884270462,1.5433,3774.1,3774.0,0.001]
[1753884270642,1.79413,3774.1,3774.0,0.001]
[1753884271755,2.75563,3774.1,3774.0,0.001]
[1753884271929,5.75563,3774.1,3774.0,0.001]
[1753884272454,8.40526832,3774.1,3774.0,0.001]
[1753884273058,8.65292567,3774.1,3774.0,0.001]
[1753884273263,8.40526832,3774.1,3774.0,0.001]
[1753884273421,8.65289835,3774.1,3774.0,0.001]
[1753884273621,8.80147697,3774.1,3774.0,0.001]
[1753884273821,8.80146763,3774.1,3774.0,0.001]
[1753884274517,6.15182931,3774.1,3774.0,0.001]
[1753884274719,5.90099931,3774.1,3774.0,0.001]
[1753884274947,1.92023406,3774.1,3774.0,0.001]
[1753884275151,1.49043406,3774.1,3774.0,0.001]
[1753884275318,1.34193003,3774.1,3774.0,0.001]
[1753884275733,1.77173003,3774.1,3774.0,0.001]
[1753884276333,1.5241,3774.1,3774.0,0.001]
[1753884276735,0.9615,3774.1,3774.0,0.001]
[1753884276934,1e-08,3774.2,3774.1,2.64963832]
[1753884277138,1e-08,3774.2,3774.1,4.46326959]
[1753884277953,1e-08,3774.2,3774.1,3.85756959]
[1753884278136,1e-08,3774.2,3774.1,5.85356959]
[1753884279149,1e-08,3774.2,3774.1,6.40356959]
[1753884280384,1e-08,3774.2,3774.1,5.85356959]
[1753884280688,1e-08,3774.2,3774.1,8.65426959]